[Event "Championnat du monde jeunes U12F"]
[Date "2024.11.25"]
[White "Zavivaeva, Angelina"]
[Black "Xikmatkhonova, Mokhinur"]
[WhiteElo "1499"]
[BlackElo "1726"]
[Round "10.19"]
[Result "0-1"]
[TimeControl "5400+30"]

1. e4 {[%clk 1:30:58]} 1... c5 {[%clk 1:30:52]} 2. Nf3 {[%clk 1:31:25]} 2... e6
{[%clk 1:31:14]} 3. g3 {[%clk 1:31:51]} 3... Nc6 {[%clk 1:31:27]} 4. Bg2 {[%clk
1:32:09]} 4... Nf6 {[%clk 1:31:47]} 5. Qe2 {[%clk 1:31:58]} 5... e5 {[%clk
1:31:49]} 6. O-O {[%clk 1:28:58]} 6... d6 {[%clk 1:30:41]} 7. d3 {[%clk
1:28:25]} 7... Be7 {[%clk 1:30:46]} 8. c3 {[%clk 1:22:02]} 8... O-O {[%clk
1:26:40]} 9. Be3 {[%clk 1:22:15]} 9... Re8 {[%clk 1:20:07]} 10. Nbd2 {[%clk
1:19:20]} 10... Ng4 {[%clk 1:04:25]} 11. Rac1 {[%clk 0:59:30]} 11... Rb8 {[%clk
1:02:35]} 12. d4 {[%clk 0:58:38]} 12... Nxe3 {[%clk 0:56:47]} 13. Qxe3 {[%clk
0:50:01]} 13... b6 {[%clk 0:42:10]} 14. Rfd1 {[%clk 0:39:43]} 14... Qc7 {[%clk
0:28:08]} 15. d5 {[%clk 0:25:04]} 15... Nd8 {[%clk 0:24:27]} 16. b4 {[%clk
0:19:19]} 16... Bd7 {[%clk 0:21:31]} 17. Rb1 {[%clk 0:09:16]} 17... f6 {[%clk
0:17:05]} 18. bxc5 {[%clk 0:04:39]} 18... bxc5 {[%clk 0:17:01]} 19. Rxb8 {[%clk
0:03:54]} 19... Qxb8 {[%clk 0:17:29]} 20. Rb1 {[%clk 0:04:10]} 20... Qc7 {[%clk
0:17:49]} 21. c4 {[%clk 0:02:45]} 21... f5 {[%clk 0:14:52]} 22. Qd3 {[%clk
0:00:34]} 22... fxe4 {[%clk 0:13:35]} 23. Qxe4 {[%clk 0:00:40]} 23... Rf8 {[%clk
0:12:53]} 24. Qe3 {[%clk 0:00:40]} 24... Bf5 {[%clk 0:12:40]} 25. Rb2 {[%clk
0:00:36]} 25... h6 {[%clk 0:12:22]} 26. Ne4 {[%clk 0:00:40]} 26... Qa5 {[%clk
0:09:50]} 27. Nfd2 {[%clk 0:00:38]} 27... Nf7 {[%clk 0:06:04]} 28. Qc3 {[%clk
0:00:36]} 28... Qa6 {[%clk 0:06:02]} 29. Qb3 {[%clk 0:00:35]} 29... Bxe4 {[%clk
0:02:50]} 30. Nxe4 {[%clk 0:00:44]} 30... Ng5 {[%clk 0:03:19]} 31. Nxg5 {[%clk
0:00:41]} 31... Bxg5 {[%clk 0:03:43]} 32. Qc3 {[%clk 0:00:36]} 32... Qa4 {[%clk
0:03:39]} 33. Qc2 {[%clk 0:00:39]} 33... Qa5 {[%clk 0:03:50]} 34. Rb1 {[%clk
0:00:34]} 34... Qd8 {[%clk 0:02:21]} 35. Bh3 {[%clk 0:00:36]} 35... Qf6 {[%clk
0:02:16]} 36. Be6+ {[%clk 0:01:00]} 36... Kh8 {[%clk 0:02:44]} 37. h4 {[%clk
0:00:48]} 37... Bxh4 {[%clk 0:01:59]} 38. gxh4 {[%clk 0:01:17]} 38... Qxh4
{[%clk 0:02:28]} 39. Qd3 {[%clk 0:00:34]} 39... Qxf2+ {[%clk 0:02:23]} 40. Kh1
Qh4+ {[%clk 0:02:39]} 41. Kg1 {[%clk 0:00:59]} 41... e4 {[%clk 0:01:23]} 42. Qe2
{[%clk 0:00:34]} 42... Rf3 {[%clk 0:00:34]} 43. Rb8+ {[%clk 0:00:34]} 43... Kh7
{[%clk 0:01:03]} 44. Rb1 {[%clk 0:00:33]} 44... Rg3+ {[%clk 0:01:10]} 45. Kf2
{[%clk 0:00:34]} 45... e3+ {[%clk 0:01:23]} 46. Ke1 {[%clk 0:00:33]} 46... Rg1#
{[%clk 0:01:43]} 0-1

[Variant "Standard"]
[Site "Europe Echecs"]

[Event "Championnat du monde jeunes U12F"]
[Date "2024.11.25"]
[White "Kovalskyy, Alicia"]
[Black "Sevastsyanchuk, Anastasiya"]
[WhiteElo "1871"]
[BlackElo "1595"]
[Round "10.20"]
[Result "1/2-1/2"]
[TimeControl "5400+30"]

1. e4 {[%clk 1:30:57]} 1... c5 {[%clk 1:30:54]} 2. Nf3 {[%clk 1:31:24]} 2... e6
{[%clk 1:31:15]} 3. d4 {[%clk 1:31:48]} 3... cxd4 {[%clk 1:31:35]} 4. Nxd4
{[%clk 1:32:09]} 4... Nf6 {[%clk 1:31:50]} 5. Nc3 {[%clk 1:31:47]} 5... Nc6
{[%clk 1:32:08]} 6. a3 {[%clk 1:32:10]} 6... d6 {[%clk 1:32:20]} 7. Be2 {[%clk
1:31:58]} 7... Be7 {[%clk 1:32:32]} 8. Be3 {[%clk 1:31:14]} 8... a6 {[%clk
1:31:15]} 9. O-O {[%clk 1:30:57]} 9... Bd7 {[%clk 1:29:26]} 10. f4 {[%clk
1:26:45]} 10... Qc7 {[%clk 1:27:01]} 11. Qe1 {[%clk 1:20:53]} 11... O-O {[%clk
1:22:29]} 12. Qg3 {[%clk 1:13:47]} 12... d5 {[%clk 1:19:32]} 13. exd5 {[%clk
0:54:31]} 13... exd5 {[%clk 1:19:27]} 14. Rad1 {[%clk 0:49:48]} 14... Bc5 {[%clk
1:13:31]} 15. Nb3 {[%clk 0:40:19]} 15... Bxe3+ {[%clk 1:12:39]} 16. Qxe3 {[%clk
0:40:45]} 16... Rfe8 {[%clk 1:12:12]} 17. Qf2 {[%clk 0:40:33]} 17... Ne4 {[%clk
1:03:23]} 18. Nxd5 {[%clk 0:31:47]} 18... Nxf2 {[%clk 1:03:13]} 19. Nxc7 {[%clk
0:32:11]} 19... Nxd1 {[%clk 1:02:55]} 20. Bxd1 {[%clk 0:31:10]} 20... Rac8
{[%clk 1:02:15]} 21. Nxe8 {[%clk 0:31:29]} 21... Rxe8 {[%clk 1:02:35]} 22. Kf2
{[%clk 0:28:38]} 22... Bf5 {[%clk 0:56:32]} 23. Re1 {[%clk 0:27:02]} 23... Rd8
{[%clk 0:56:27]} 24. g4 {[%clk 0:26:01]} 24... Be6 {[%clk 0:51:17]} 25. c3
{[%clk 0:06:02]} 25... g6 {[%clk 0:49:59]} 26. Nd4 {[%clk 0:01:44]} 26... Nxd4
{[%clk 0:50:20]} 27. cxd4 {[%clk 0:02:12]} 27... Rxd4 {[%clk 0:50:45]} 28. Ke3
{[%clk 0:02:15]} 28... Rc4 {[%clk 0:50:08]} 29. Bf3 {[%clk 0:01:47]} 29... b5
{[%clk 0:50:19]} 30. h3 {[%clk 0:01:27]} 30... Rc2 {[%clk 0:50:33]} 31. Re2
{[%clk 0:01:50]} 31... Rc1 {[%clk 0:50:33]} 32. Rd2 {[%clk 0:01:22]} 32... Bc4
{[%clk 0:50:43]} 33. Kd4 {[%clk 0:00:47]} 33... Be6 {[%clk 0:50:44]} 34. Ke3
{[%clk 0:01:00]} 34... Kg7 {[%clk 0:47:51]} 35. Rd6 {[%clk 0:01:09]} 35... a5
{[%clk 0:47:58]} 36. Rd1 {[%clk 0:00:44]} 36... Rc2 {[%clk 0:48:22]} 37. Rd2
{[%clk 0:01:10]} 37... Rc7 {[%clk 0:48:31]} 38. Rd4 {[%clk 0:00:55]} 38... Re7
{[%clk 0:47:32]} 39. Re4 {[%clk 0:01:10]} 39... Rc7 {[%clk 0:46:59]} 40. Rd4
{[%clk 0:01:32]} 40... Bb3 {[%clk 0:47:05]} 41. Bd5 {[%clk 0:01:12]} 41... Bc2
{[%clk 0:46:21]} 42. Kd2 {[%clk 0:01:13]} 42... f5 {[%clk 0:46:09]} 43. Be6
{[%clk 0:01:02]} 43... Be4 {[%clk 0:46:21]} 44. Rd7+ {[%clk 0:00:44]} 44...
Rxd7+ {[%clk 0:46:40]} 45. Bxd7 {[%clk 0:01:11]} 45... fxg4 {[%clk 0:46:58]} 46.
hxg4 {[%clk 0:01:30]} 46... b4 {[%clk 0:47:16]} 47. axb4 {[%clk 0:01:20]} 47...
axb4 {[%clk 0:47:40]} 48. Ke3 {[%clk 0:01:49]} 48... Bd5 {[%clk 0:43:50]} 49.
Kd4 {[%clk 0:02:05]} 49... Bf7 {[%clk 0:44:15]} 50. Kc5 {[%clk 0:00:37]} 50...
b3 {[%clk 0:44:36]} 51. Kd4 {[%clk 0:00:57]} 51... Kf6 {[%clk 0:44:39]} 52. g5+
{[%clk 0:01:05]} 52... Kg7 {[%clk 0:44:17]} 53. Ke5 {[%clk 0:00:47]} 53... h5
{[%clk 0:44:38]} 54. gxh6+ {[%clk 0:01:15]} 54... Kxh6 {[%clk 0:45:04]} 55. Kf6
{[%clk 0:01:41]} 55... Bc4 {[%clk 0:45:18]} 56. Be8 {[%clk 0:01:10]} 56... Bd3
{[%clk 0:45:40]} 57. Bf7 {[%clk 0:01:22]} 57... Bc2 {[%clk 0:46:04]} 58. Be6
{[%clk 0:00:46]} 58... Kh5 {[%clk 0:45:44]} 59. Bd7 {[%clk 0:00:38]} 59... Kh4
{[%clk 0:45:57]} 60. Be6 {[%clk 0:00:46]} 60... Kg3 {[%clk 0:46:10]} 61. Kg5
{[%clk 0:00:44]} 61... Kf3 {[%clk 0:46:09]} 62. Bf7 {[%clk 0:00:36]} 62... Ke3
{[%clk 0:46:08]} 63. Bd5 {[%clk 0:00:37]} 63... Kd2 {[%clk 0:46:01]} 64. Bxb3
{[%clk 0:00:56]} 1/2-1/2

[Variant "Standard"]
[Site "Europe Echecs"]

[Event "Championnat du monde jeunes U12F"]
[Date "2024.11.25"]
[White "Sunea, Sara Maria"]
[Black "Abylaykyzy, Bibisara"]
[WhiteElo "1823"]
[BlackElo "1694"]
[Round "10.21"]
[Result "1/2-1/2"]
[TimeControl "5400+30"]

1. e4 {[%clk 1:30:53]} 1... c5 {[%clk 1:30:56]} 2. c3 {[%clk 1:31:18]} 2... d5
{[%clk 1:31:05]} 3. exd5 {[%clk 1:31:42]} 3... Qxd5 {[%clk 1:31:31]} 4. d4
{[%clk 1:32:04]} 4... cxd4 {[%clk 1:29:59]} 5. cxd4 {[%clk 1:32:22]} 5... Nc6
{[%clk 1:30:04]} 6. Nf3 {[%clk 1:32:32]} 6... e5 {[%clk 1:28:11]} 7. dxe5 {[%clk
1:27:27]} 7... Qxd1+ {[%clk 1:28:37]} 8. Kxd1 {[%clk 1:27:56]} 8... Bg4 {[%clk
1:29:02]} 9. Bf4 {[%clk 1:25:35]} 9... O-O-O+ {[%clk 1:20:05]} 10. Kc1 {[%clk
1:21:21]} 10... Nge7 {[%clk 1:17:06]} 11. Nbd2 {[%clk 1:07:34]} 11... Ng6 {[%clk
1:15:01]} 12. Bg3 {[%clk 1:04:07]} 12... Bb4 {[%clk 1:14:39]} 13. h3 {[%clk
1:02:38]} 13... Bh5 {[%clk 1:09:35]} 14. e6 {[%clk 1:00:06]} 14... fxe6 {[%clk
1:08:06]} 15. Bc4 {[%clk 0:58:39]} 15... Rhe8 {[%clk 1:07:50]} 16. a3 {[%clk
0:58:06]} 16... Bxd2+ {[%clk 1:01:59]} 17. Nxd2 {[%clk 0:58:34]} 17... Nge5
{[%clk 1:02:21]} 18. Bb5 {[%clk 0:49:42]} 18... Nd3+ {[%clk 0:49:34]} 19. Bxd3
{[%clk 0:37:04]} 19... Rxd3 {[%clk 0:49:35]} 20. Ne4 {[%clk 0:35:27]} 20... Red8
{[%clk 0:49:00]} 21. Kb1 {[%clk 0:21:51]} 21... Bg6 {[%clk 0:48:28]} 22. Re1
{[%clk 0:19:27]} 22... Rd1+ {[%clk 0:48:49]} 23. Ka2 {[%clk 0:19:19]} 23...
Rxa1+ {[%clk 0:44:33]} 24. Kxa1 {[%clk 0:19:41]} 24... Bxe4 {[%clk 0:44:55]} 25.
Rxe4 {[%clk 0:20:10]} 25... Re8 {[%clk 0:41:31]} 26. Kb1 {[%clk 0:19:04]} 26...
Kd7 {[%clk 0:40:33]} 27. Kc2 {[%clk 0:16:58]} 27... e5 {[%clk 0:36:51]} 28. b4
{[%clk 0:15:04]} 28... Kd6 {[%clk 0:32:27]} 29. f3 {[%clk 0:12:26]} 29... Kd5
{[%clk 0:31:52]} 30. Bf2 {[%clk 0:11:15]} 30... Rc8 {[%clk 0:30:10]} 31. Kd3
{[%clk 0:10:56]} 31... Ne7 {[%clk 0:26:42]} 32. Bg3 {[%clk 0:07:26]} 32... Ng6
{[%clk 0:25:47]} 1/2-1/2

[Variant "Standard"]
[Site "Europe Echecs"]

[Event "Championnat du monde jeunes U12F"]
[Date "2024.11.25"]
[White "Tu, Audrey"]
[Black "Chichinadze, Anastasia"]
[WhiteElo "1765"]
[BlackElo "1682"]
[Round "10.22"]
[Result "0-1"]
[TimeControl "5400+30"]

1. e4 {[%clk 1:30:58]} 1... e5 {[%clk 1:30:45]} 2. Nf3 {[%clk 1:31:22]} 2... Nc6
{[%clk 1:31:13]} 3. Bb5 {[%clk 1:31:46]} 3... a6 {[%clk 1:31:39]} 4. Ba4 {[%clk
1:32:12]} 4... Nf6 {[%clk 1:32:05]} 5. d3 {[%clk 1:32:38]} 5... b5 {[%clk
1:31:24]} 6. Bb3 {[%clk 1:33:03]} 6... Bc5 {[%clk 1:31:51]} 7. c3 {[%clk
1:33:27]} 7... h6 {[%clk 1:31:49]} 8. O-O {[%clk 1:33:09]} 8... O-O {[%clk
1:32:14]} 9. Re1 {[%clk 1:30:55]} 9... d6 {[%clk 1:23:58]} 10. d4 {[%clk
1:25:45]} 10... Bb6 {[%clk 1:15:17]} 11. h3 {[%clk 1:23:29]} 11... Re8 {[%clk
1:13:59]} 12. a4 {[%clk 1:19:08]} 12... Na5 {[%clk 0:58:58]} 13. Bc2 {[%clk
1:16:01]} 13... exd4 {[%clk 0:57:31]} 14. cxd4 {[%clk 1:03:27]} 14... Bb7 {[%clk
0:53:25]} 15. Nbd2 {[%clk 1:00:30]} 15... Nc6 {[%clk 0:43:24]} 16. Nf1 {[%clk
0:50:20]} 16... Nb4 {[%clk 0:36:15]} 17. Ng3 {[%clk 0:49:43]} 17... Nxc2 {[%clk
0:28:13]} 18. Qxc2 {[%clk 0:50:05]} 18... Qd7 {[%clk 0:28:05]} 19. a5 {[%clk
0:44:56]} 19... Ba7 {[%clk 0:28:27]} 20. b4 {[%clk 0:43:23]} 20... Nxe4 {[%clk
0:17:12]} 21. Nxe4 {[%clk 0:40:04]} 21... Qf5 {[%clk 0:17:31]} 22. Nh4 {[%clk
0:23:19]} 22... Bxe4 {[%clk 0:15:32]} 23. Qxc7 {[%clk 0:20:59]} 23... Qf6 {[%clk
0:11:10]} 24. Nf3 {[%clk 0:14:55]} 24... Rec8 {[%clk 0:11:00]} 25. Qd7 {[%clk
0:14:46]} 25... Bxf3 {[%clk 0:11:24]} 26. gxf3 {[%clk 0:14:14]} 26... Bxd4
{[%clk 0:10:50]} 27. Ra3 {[%clk 0:14:12]} 27... Bc3 {[%clk 0:11:08]} 28. Rd1
{[%clk 0:11:41]} 28... Bxb4 {[%clk 0:10:16]} 29. Rad3 {[%clk 0:11:38]} 29...
Rxc1 {[%clk 0:09:00]} 30. Rxc1 {[%clk 0:10:15]} 30... Qg5+ {[%clk 0:08:56]} 31.
Kh2 {[%clk 0:10:18]} 31... Qxc1 {[%clk 0:08:57]} 32. Re3 {[%clk 0:10:16]} 32...
Qc8 {[%clk 0:06:55]} 33. Qe7 {[%clk 0:10:09]} 33... Bc5 {[%clk 0:06:15]} 34. Re2
{[%clk 0:10:09]} 34... b4 {[%clk 0:06:20]} 35. Qe4 {[%clk 0:09:21]} 35... Rb8
{[%clk 0:05:39]} 36. Qd5 {[%clk 0:08:55]} 36... Qc7 {[%clk 0:05:55]} 37. Rc2
{[%clk 0:08:54]} 37... b3 {[%clk 0:05:26]} 38. Rb2 {[%clk 0:08:49]} 38... Qxa5
{[%clk 0:04:44]} 39. Rxb3 {[%clk 0:08:35]} 39... Rxb3 {[%clk 0:05:02]} 40. Qxb3
{[%clk 0:09:00]} 40... Qd2 {[%clk 0:05:19]} 41. Qb8+ {[%clk 0:09:08]} 41... Kh7
{[%clk 0:05:44]} 42. Qb1+ {[%clk 0:09:14]} 42... g6 {[%clk 0:06:00]} 43. Qg1
{[%clk 0:09:20]} 43... Qxf2+ {[%clk 0:05:51]} 44. Qxf2 {[%clk 0:09:44]} 44...
Bxf2 {[%clk 0:06:18]} 45. Kg2 {[%clk 0:10:09]} 45... Bd4 {[%clk 0:06:38]} 46.
Kf1 {[%clk 0:10:29]} 46... a5 {[%clk 0:07:05]} 47. Ke1 {[%clk 0:10:50]} 47... a4
{[%clk 0:07:31]} 48. f4 {[%clk 0:10:58]} 48... a3 {[%clk 0:07:57]} 49. f5 {[%clk
0:11:25]} 49... a2 {[%clk 0:08:24]} 50. fxg6+ {[%clk 0:11:51]} 50... Kxg6 {[%clk
0:08:51]} 51. h4 {[%clk 0:12:14]} 51... a1=Q+ {[%clk 0:09:14]} 52. Ke2 {[%clk
0:12:37]} 52... Qc3 {[%clk 0:09:29]} 53. h5+ {[%clk 0:13:03]} 53... Kf5 {[%clk
0:09:53]} 54. Kf1 {[%clk 0:13:24]} 54... Qc2 {[%clk 0:10:12]} 55. Ke1 {[%clk
0:13:45]} 55... d5 {[%clk 0:10:38]} 56. Kf1 {[%clk 0:14:06]} 56... Qf2# {[%clk
0:11:04]} 0-1

[Variant "Standard"]
[Site "Europe Echecs"]

[Event "Championnat du monde jeunes U12F"]
[Date "2024.11.25"]
[White "Alcantara, Levanah"]
[Black "Liu, Jingyu"]
[WhiteElo "1753"]
[BlackElo "1680"]
[Round "10.23"]
[Result "1-0"]
[TimeControl "5400+30"]

1. d4 {[%clk 1:30:58]} 1... d5 {[%clk 1:30:54]} 2. c4 {[%clk 1:31:22]} 2... e6
{[%clk 1:31:17]} 3. Nc3 {[%clk 1:31:44]} 3... Nf6 {[%clk 1:31:38]} 4. cxd5
{[%clk 1:32:08]} 4... exd5 {[%clk 1:32:03]} 5. Bg5 {[%clk 1:32:30]} 5... c6
{[%clk 1:32:27]} 6. e3 {[%clk 1:32:47]} 6... Be7 {[%clk 1:32:44]} 7. Bd3 {[%clk
1:33:03]} 7... O-O {[%clk 1:33:02]} 8. h3 {[%clk 1:33:10]} 8... h6 {[%clk
1:23:11]} 9. Bf4 {[%clk 1:31:56]} 9... Re8 {[%clk 1:22:23]} 10. Nf3 {[%clk
1:30:45]} 10... Bd6 {[%clk 1:15:07]} 11. Ne5 {[%clk 1:28:41]} 11... c5 {[%clk
1:07:20]} 12. Nb5 {[%clk 1:20:12]} 12... cxd4 {[%clk 0:59:59]} 13. Nxd6 {[%clk
1:18:24]} 13... Qxd6 {[%clk 0:59:23]} 14. exd4 {[%clk 1:17:53]} 14... Nc6 {[%clk
0:41:30]} 15. O-O {[%clk 1:08:16]} 15... Nxd4 {[%clk 0:30:33]} 16. Qa4 {[%clk
1:04:53]} 16... Ne6 {[%clk 0:27:15]} 17. Ng4 {[%clk 1:01:59]} 17... Bd7 {[%clk
0:15:40]} 18. Bxd6 {[%clk 0:57:14]} 18... Bxa4 {[%clk 0:15:59]} 19. Nxf6+ {[%clk
0:57:11]} 19... gxf6 {[%clk 0:16:20]} 20. b3 {[%clk 0:48:20]} 20... Bc6 {[%clk
0:16:15]} 21. Rfd1 {[%clk 0:41:33]} 21... Rad8 {[%clk 0:14:57]} 22. Ba3 {[%clk
0:40:46]} 22... Nf4 {[%clk 0:13:12]} 23. Bf1 {[%clk 0:36:27]} 23... Kg7 {[%clk
0:12:02]} 24. Rd2 {[%clk 0:34:55]} 24... Rd7 {[%clk 0:08:47]} 25. b4 {[%clk
0:32:22]} 25... a6 {[%clk 0:07:06]} 26. Rc1 {[%clk 0:31:26]} 26... Ba4 {[%clk
0:04:09]} 27. Bb2 {[%clk 0:26:13]} 27... Ne6 {[%clk 0:04:10]} 28. Rc3 {[%clk
0:22:48]} 28... d4 {[%clk 0:03:33]} 29. Rg3+ {[%clk 0:21:49]} 29... Kh8 {[%clk
0:03:40]} 30. Rg4 {[%clk 0:21:16]} 30... Red8 {[%clk 0:03:06]} 31. Bc4 {[%clk
0:20:53]} 31... Kh7 {[%clk 0:02:30]} 32. Bd3+ {[%clk 0:19:27]} 32... Kh8 {[%clk
0:02:43]} 33. Bf5 {[%clk 0:19:47]} 33... Rd5 {[%clk 0:01:07]} 34. Bxe6 {[%clk
0:17:36]} 34... fxe6 {[%clk 0:01:33]} 35. Rdxd4 {[%clk 0:14:41]} 35... Rxd4
{[%clk 0:01:41]} 36. Bxd4 {[%clk 0:14:23]} 36... e5 {[%clk 0:01:10]} 37. Be3
{[%clk 0:14:21]} 37... h5 {[%clk 0:00:52]} 38. Rg6 {[%clk 0:13:44]} 38... Rd6
{[%clk 0:00:44]} 39. Rh6+ {[%clk 0:12:13]} 39... Kg7 {[%clk 0:01:11]} 40. Rxh5
{[%clk 0:11:19]} 40... Rd1+ {[%clk 0:01:37]} 41. Kh2 {[%clk 0:11:42]} 41... Ra1
{[%clk 0:02:05]} 42. g4 {[%clk 0:07:57]} 42... Rxa2 {[%clk 0:02:24]} 43. g5
{[%clk 0:08:08]} 43... Bd1 {[%clk 0:02:39]} 44. gxf6+ {[%clk 0:08:04]} 44...
Kxf6 {[%clk 0:03:05]} 45. Rh6+ {[%clk 0:07:57]} 45... Kf5 {[%clk 0:02:53]} 46.
Rh7 {[%clk 0:07:59]} 46... b5 {[%clk 0:02:58]} 47. Ra7 {[%clk 0:07:49]} 47...
Ra4 {[%clk 0:03:01]} 48. Bc5 {[%clk 0:08:01]} 48... Bh5 {[%clk 0:02:45]} 49. Kg3
{[%clk 0:07:12]} 49... Ra3+ {[%clk 0:03:03]} 50. Kg2 {[%clk 0:07:09]} 50... Kf4
{[%clk 0:03:10]} 51. Be3+ {[%clk 0:07:16]} 51... Kf5 {[%clk 0:02:52]} 52. Rg7
{[%clk 0:07:23]} 52... Kf6 {[%clk 0:02:28]} 53. Rh7 {[%clk 0:06:50]} 53... Bg6
{[%clk 0:02:42]} 54. Rc7 {[%clk 0:07:00]} 54... Be4+ {[%clk 0:02:48]} 55. Kg3
{[%clk 0:06:45]} 55... Rb3 {[%clk 0:02:42]} 56. Ra7 {[%clk 0:06:13]} 56... Rxb4
{[%clk 0:02:57]} 57. Rxa6+ {[%clk 0:06:35]} 57... Kf5 {[%clk 0:03:02]} 58. Rb6
{[%clk 0:05:47]} 58... Rb3 {[%clk 0:02:49]} 59. h4 {[%clk 0:05:25]} 59... b4
{[%clk 0:01:54]} 60. h5 {[%clk 0:05:25]} 60... Rb1 {[%clk 0:02:08]} 61. f3
{[%clk 0:05:33]} 61... Bd5 {[%clk 0:02:10]} 62. h6 {[%clk 0:05:16]} 62... b3
{[%clk 0:02:01]} 63. h7 {[%clk 0:04:49]} 63... Rh1 {[%clk 0:01:06]} 64. Rh6
{[%clk 0:05:07]} 1-0

[Variant "Standard"]
[Site "Europe Echecs"]

[Event "Championnat du monde jeunes U12F"]
[Date "2024.11.25"]
[White "Baruch, Amit"]
[Black "Wang, Tianmu"]
[WhiteElo "1747"]
[BlackElo "1640"]
[Round "10.24"]
[Result "1/2-1/2"]
[TimeControl "5400+30"]

1. e4 {[%clk 1:30:58]} 1... e5 {[%clk 1:30:48]} 2. Nf3 {[%clk 1:31:21]} 2... Nc6
{[%clk 1:30:51]} 3. Bb5 {[%clk 1:31:42]} 3... a6 {[%clk 1:31:03]} 4. Ba4 {[%clk
1:32:06]} 4... Nf6 {[%clk 1:31:23]} 5. O-O {[%clk 1:32:27]} 5... Be7 {[%clk
1:31:20]} 6. Re1 {[%clk 1:32:47]} 6... b5 {[%clk 1:31:36]} 7. Bb3 {[%clk
1:33:10]} 7... d6 {[%clk 1:31:27]} 8. a4 {[%clk 1:33:25]} 8... b4 {[%clk
1:29:08]} 9. a5 {[%clk 1:33:43]} 9... O-O {[%clk 1:28:18]} 10. c3 {[%clk
1:31:08]} 10... Bg4 {[%clk 1:23:42]} 11. h3 {[%clk 1:30:20]} 11... Bh5 {[%clk
1:21:59]} 12. d3 {[%clk 1:29:50]} 12... bxc3 {[%clk 1:20:06]} 13. bxc3 {[%clk
1:30:00]} 13... Rb8 {[%clk 1:16:09]} 14. Bc4 {[%clk 1:28:17]} 14... Nxa5 {[%clk
1:09:22]} 15. Rxa5 {[%clk 1:25:03]} 15... Rxb1 {[%clk 1:09:36]} 16. Ba2 {[%clk
1:16:35]} 16... Rb6 {[%clk 1:07:48]} 17. Be3 {[%clk 1:14:35]} 17... c5 {[%clk
1:05:04]} 18. g4 {[%clk 1:07:26]} 18... Bg6 {[%clk 1:04:52]} 19. Qa4 {[%clk
1:06:03]} 19... Qb8 {[%clk 0:53:30]} 20. Rxa6 {[%clk 1:00:05]} 20... Rxa6 {[%clk
0:52:59]} 21. Qxa6 {[%clk 1:00:28]} 21... Qb2 {[%clk 0:52:30]} 22. Kf1 {[%clk
0:48:25]} 22... Qxc3 {[%clk 0:43:42]} 23. Bd2 {[%clk 0:47:56]} 23... Qc2 {[%clk
0:41:52]} 24. Rc1 {[%clk 0:48:06]} 24... Qb2 {[%clk 0:42:06]} 25. Rb1 {[%clk
0:48:25]} 25... Qc2 {[%clk 0:42:15]} 26. Ra1 1/2-1/2

[Variant "Standard"]
[Site "Europe Echecs"]

[Event "Championnat du monde jeunes U12F"]
[Date "2024.11.25"]
[White "Gailevska, Milana"]
[Black "Lukin, Yesenia"]
[WhiteElo "1698"]
[BlackElo "1732"]
[Round "10.25"]
[Result "1-0"]
[TimeControl "5400+30"]

1. d4 {[%clk 1:30:58]} 1... Nf6 {[%clk 1:30:43]} 2. Nf3 {[%clk 1:31:21]} 2... e6
{[%clk 1:30:40]} 3. Bf4 {[%clk 1:31:14]} 3... d5 {[%clk 1:30:31]} 4. e3 {[%clk
1:31:32]} 4... Nbd7 {[%clk 1:29:27]} 5. c4 {[%clk 1:31:36]} 5... c6 {[%clk
1:28:46]} 6. Nc3 {[%clk 1:31:52]} 6... Bb4 {[%clk 1:27:06]} 7. Qb3 {[%clk
1:30:59]} 7... Qa5 {[%clk 1:20:06]} 8. Bd3 {[%clk 1:25:50]} 8... dxc4 {[%clk
1:03:18]} 9. Bxc4 {[%clk 1:23:07]} 9... Ne4 {[%clk 1:00:01]} 10. Rc1 {[%clk
1:22:21]} 10... Nb6 {[%clk 0:50:51]} 11. O-O {[%clk 1:21:43]} 11... Bxc3 {[%clk
0:48:04]} 12. bxc3 {[%clk 1:21:40]} 12... Nxc4 {[%clk 0:47:53]} 13. Qxc4 {[%clk
1:21:53]} 13... g5 {[%clk 0:47:08]} 14. Be5 {[%clk 1:12:47]} 14... f6 {[%clk
0:45:33]} 15. Qd3 {[%clk 1:12:42]} 15... fxe5 {[%clk 0:27:12]} 16. Qxe4 {[%clk
1:12:57]} 16... exd4 {[%clk 0:26:23]} 17. Qxd4 {[%clk 1:11:14]} 17... O-O {[%clk
0:20:36]} 18. Qc4 {[%clk 1:04:34]} 18... h6 {[%clk 0:17:27]} 19. Rcd1 {[%clk
0:54:40]} 19... Rd8 {[%clk 0:14:10]} 20. Qe4 {[%clk 0:52:44]} 20... Rxd1 {[%clk
0:02:23]} 21. Qg6+ {[%clk 0:51:59]} 21... Kf8 {[%clk 0:02:45]} 22. Rxd1 {[%clk
0:50:49]} 22... Qxc3 {[%clk 0:00:58]} 23. Rd8+ {[%clk 0:50:42]} 23... Ke7 {[%clk
0:01:17]} 24. Qe8+ {[%clk 0:51:04]} 24... Kf6 {[%clk 0:01:30]} 25. Qh8+ {[%clk
0:51:23]} 25... Ke7 {[%clk 0:01:44]} 26. Qf8# {[%clk 0:51:09]} 1-0

[Variant "Standard"]
[Site "Europe Echecs"]